[Event "December 19 Late 2023"]
[Site "https://www.chess.com"]
[Date "2023.12.19"]
[Round "10"]
[White "Pulpan, Jakub"]
[Black "Beerdsen, Thomas"]
[Result "1-0"]
[Board "16"]
[TimeControl "180+1"]
[WhiteFideId "302759"]
[BlackFideId "1030108"]
[WhiteElo "2501"]
[BlackElo "2550"]
[WhiteTeam "CZE"]
[BlackTeam "NED"]
[WhiteClock "0:00:20"]
[BlackClock "0:01:03"]

1. Nf3 {[%clk 0:02:59]}  g5 {[%clk 0:02:59]} 2. Nxg5 {[%clk 0:02:57]}  e5 {[%clk 0:03:00]} 3. d3 {[%clk 0:02:56]}  h6 {[%clk 0:03:00]} 4. Nf3 {[%clk 0:02:56]}  Nc6 {[%clk 0:03:01]} 5. c4 {[%clk 0:02:53]}  Nf6 {[%clk 0:03:02]} 6. Nc3 {[%clk 0:02:53]}  d5 {[%clk 0:03:02]} 7. cxd5 {[%clk 0:02:53]}  Nxd5 {[%clk 0:03:03]} 8. g3 {[%clk 0:02:50]}  Nb6 {[%clk 0:03:01]} 9. Bg2 {[%clk 0:02:49]}  Be6 {[%clk 0:02:57]} 10. Be3 {[%clk 0:02:46]}  Qd7 {[%clk 0:02:55]} 11. O-O {[%clk 0:02:40]}  O-O-O {[%clk 0:02:56]} 12. Ne4 {[%clk 0:02:40]}  Kb8 {[%clk 0:02:55]} 13. Nc5 {[%clk 0:02:40]}  Bxc5 {[%clk 0:02:55]} 14. Bxc5 {[%clk 0:02:40]}  Bh3 {[%clk 0:02:55]} 15. Rc1 {[%clk 0:02:40]}  h5 {[%clk 0:02:55]} 16. Bxb6 {[%clk 0:02:24]}  axb6 {[%clk 0:02:53]} 17. Qa4 {[%clk 0:02:04]}  h4 {[%clk 0:02:44]} 18. Rxc6 {[%clk 0:02:04]}  Bxg2 {[%clk 0:02:43]} 19. Kxg2 {[%clk 0:01:58]}  hxg3 {[%clk 0:02:40]} 20. fxg3 {[%clk 0:01:55]}  bxc6 {[%clk 0:02:37]} 21. Rc1 {[%clk 0:01:56]}  Rh6 {[%clk 0:02:28]} 22. Kf2 {[%clk 0:01:48]}  Re8 {[%clk 0:02:22]} 23. Qe4 {[%clk 0:01:38]}  Qe6 {[%clk 0:02:10]} 24. Qc4 {[%clk 0:01:36]}  Qd6 {[%clk 0:02:05]} 25. Kg2 {[%clk 0:01:27]}  f5 {[%clk 0:02:05]} 26. Nh4 {[%clk 0:01:24]}  Reh8 {[%clk 0:01:58]} 27. h3 {[%clk 0:01:21]}  Rh5 {[%clk 0:01:46]} 28. Rc3 {[%clk 0:01:02]}  Rxh4 {[%clk 0:01:35]} 29. gxh4 {[%clk 0:01:01]}  Qg6+ {[%clk 0:01:36]} 30. Kf2 {[%clk 0:00:52]}  f4 {[%clk 0:01:33]} 31. Ke1 {[%clk 0:00:53]}  Rxh4 {[%clk 0:01:23]} 32. Qxc6 {[%clk 0:00:51]}  Qg1+ {[%clk 0:01:23]} 33. Kd2 {[%clk 0:00:50]}  Qe3+ {[%clk 0:01:24]} 34. Kd1 {[%clk 0:00:47]}  Qg1+ {[%clk 0:01:16]} 35. Kc2 {[%clk 0:00:46]}  Rh7 {[%clk 0:01:13]} 36. Qe8+ {[%clk 0:00:42]}  Kb7 {[%clk 0:01:13]} 37. Qxe5 {[%clk 0:00:42]}  Qg2 {[%clk 0:01:06]} 38. Qe4+ {[%clk 0:00:20]}  Qxe4 {[%clk 0:01:07]} 39. dxe4 {[%clk 0:00:21]}  Re7 {[%clk 0:01:06]} 40. h4 {[%clk 0:00:21]}  c5 {[%clk 0:01:07]} 41. h5 {[%clk 0:00:19]}  Rxe4 {[%clk 0:01:07]} 42. Kd2 {[%clk 0:00:20]}  Re6 {[%clk 0:01:03]} 43. Rh3 {[%clk 0:00:20]}  Rh6 {[%clk 0:01:04]} 44. Kd3 {[%clk 0:00:20]}  Rxh5 {[%clk 0:01:03]} 45. Rxh5 {[%clk 0:00:20]} 1-0

[Event "December 19 Late 2023"]
[Site "https://www.chess.com"]
[Date "2023.12.19"]
[Round "10"]
[White "Khismatullin, Denis"]
[Black "Gubajdullin, Alexei"]
[Result "1-0"]
[Board "18"]
[TimeControl "180+1"]
[WhiteFideId "4142578"]
[BlackFideId "4141202"]
[WhiteElo "2552"]
[BlackElo "2274"]
[WhiteTeam "RUS"]
[BlackTeam "RUS"]
[WhiteClock "0:01:42"]
[BlackClock "0:00:01"]

1. e4 {[%clk 0:03:00]}  e5 {[%clk 0:02:57]} 2. Nf3 {[%clk 0:03:00]}  Nf6 {[%clk 0:02:57]} 3. Nxe5 {[%clk 0:02:58]}  d6 {[%clk 0:02:57]} 4. Nf3 {[%clk 0:02:58]}  Nxe4 {[%clk 0:02:57]} 5. d3 {[%clk 0:02:59]}  Nf6 {[%clk 0:02:57]} 6. d4 {[%clk 0:03:00]}  d5 {[%clk 0:02:57]} 7. Bd3 {[%clk 0:02:59]}  Bd6 {[%clk 0:02:57]} 8. O-O {[%clk 0:03:00]}  O-O {[%clk 0:02:57]} 9. Bg5 {[%clk 0:03:00]}  Nbd7 {[%clk 0:02:53]} 10. Re1 {[%clk 0:02:57]}  Re8 {[%clk 0:02:53]} 11. Rxe8+ {[%clk 0:02:52]}  Qxe8 {[%clk 0:02:53]} 12. Nc3 {[%clk 0:02:52]}  c6 {[%clk 0:02:42]} 13. Qd2 {[%clk 0:02:51]}  Ne4 {[%clk 0:02:21]} 14. Bxe4 {[%clk 0:02:47]}  dxe4 {[%clk 0:02:21]} 15. Re1 {[%clk 0:02:46]}  f5 {[%clk 0:02:20]} 16. Bf4 {[%clk 0:02:46]}  Bf8 {[%clk 0:02:14]} 17. Ne5 {[%clk 0:02:39]}  Nxe5 {[%clk 0:02:03]} 18. Bxe5 {[%clk 0:02:38]}  Qf7 {[%clk 0:02:02]} 19. b3 {[%clk 0:02:35]}  Be6 {[%clk 0:02:00]} 20. Ne2 {[%clk 0:02:32]}  Rd8 {[%clk 0:01:55]} 21. Nf4 {[%clk 0:02:29]}  Bc8 {[%clk 0:01:54]} 22. h4 {[%clk 0:02:25]}  b6 {[%clk 0:01:49]} 23. c4 {[%clk 0:02:22]}  Qe7 {[%clk 0:01:43]} 24. Qc3 {[%clk 0:02:16]}  Qxh4 {[%clk 0:01:41]} 25. d5 {[%clk 0:02:11]}  c5 {[%clk 0:01:37]} 26. Re3 {[%clk 0:01:58]}  g6 {[%clk 0:00:23]} 27. Rh3 {[%clk 0:01:52]}  Qg4 {[%clk 0:00:13]} 28. Rg3 {[%clk 0:01:51]}  Qd1+ {[%clk 0:00:12]} 29. Kh2 {[%clk 0:01:52]}  Kf7 {[%clk 0:00:12]} 30. Bh8 {[%clk 0:01:47]}  Ke8 {[%clk 0:00:08]} 31. Qe5+ {[%clk 0:01:44]}  Kd7 {[%clk 0:00:06]} 32. Qe6+ {[%clk 0:01:43]}  Kc7 {[%clk 0:00:01]} 33. Qc6+ {[%clk 0:01:42]} 1-0

[Event "December 19 Late 2023"]
[Site "https://www.chess.com"]
[Date "2023.12.19"]
[Round "10"]
[White "Omelja, Artem"]
[Black "Wieczorek, Oskar"]
[Result "0-1"]
[Board "25"]
[TimeControl "180+1"]
[WhiteFideId "14119846"]
[BlackFideId "1133950"]
[WhiteElo "2404"]
[BlackElo "2407"]
[WhiteTeam "UKR"]
[BlackTeam "POL"]
[WhiteClock "0:02:20"]
[BlackClock "0:02:30"]

1. e4 {[%clk 0:02:56]}  c5 {[%clk 0:03:00]} 2. Nf3 {[%clk 0:02:56]}  e6 {[%clk 0:03:00]} 3. c3 {[%clk 0:02:55]}  Nf6 {[%clk 0:03:00]} 4. e5 {[%clk 0:02:55]}  Nd5 {[%clk 0:03:01]} 5. a3 {[%clk 0:02:56]}  d6 {[%clk 0:03:00]} 6. d4 {[%clk 0:02:56]}  cxd4 {[%clk 0:02:59]} 7. c4 {[%clk 0:02:56]}  Nc7 {[%clk 0:02:57]} 8. Qxd4 {[%clk 0:02:54]}  Nc6 {[%clk 0:02:57]} 9. Qc3 {[%clk 0:02:54]}  d5 {[%clk 0:02:51]} 10. Bd3 {[%clk 0:02:52]}  d4 {[%clk 0:02:50]} 11. Qc2 {[%clk 0:02:52]}  a5 {[%clk 0:02:49]} 12. O-O {[%clk 0:02:47]}  Na6 {[%clk 0:02:49]} 13. Bxh7 {[%clk 0:02:45]}  g6 {[%clk 0:02:50]} 14. Bxg6 {[%clk 0:02:44]}  fxg6 {[%clk 0:02:51]} 15. Qxg6+ {[%clk 0:02:44]}  Kd7 {[%clk 0:02:51]} 16. Rd1 {[%clk 0:02:43]}  Kc7 {[%clk 0:02:49]} 17. Bg5 {[%clk 0:02:40]}  Qd7 {[%clk 0:02:47]} 18. Nbd2 {[%clk 0:02:38]}  Qh7 {[%clk 0:02:45]} 19. Qxh7+ {[%clk 0:02:35]}  Rxh7 {[%clk 0:02:45]} 20. Ne4 {[%clk 0:02:36]}  Nc5 {[%clk 0:02:40]} 21. Nf6 {[%clk 0:02:35]}  Rf7 {[%clk 0:02:35]} 22. Nxd4 {[%clk 0:02:24]}  Nxd4 {[%clk 0:02:35]} 23. Rxd4 {[%clk 0:02:25]}  Nb3 {[%clk 0:02:36]} 24. Ne8+ {[%clk 0:02:23]}  Kb8 {[%clk 0:02:35]} 25. Rd8 {[%clk 0:02:23]}  Nxa1 {[%clk 0:02:32]} 26. Nd6 {[%clk 0:02:22]}  Bxd6 {[%clk 0:02:32]} 27. exd6 {[%clk 0:02:20]}  Rd7 {[%clk 0:02:30]} 0-1

[Event "December 19 Late 2023"]
[Site "https://www.chess.com"]
[Date "2023.12.19"]
[Round "10"]
[White "Weetik, Vjacheslav"]
[Black "Assylov, Miras"]
[Result "0-1"]
[Board "27"]
[TimeControl "180+1"]
[WhiteFideId "4153472"]
[BlackFideId "13728873"]
[WhiteElo "2469"]
[BlackElo "1991"]
[WhiteTeam "RUS"]
[BlackTeam "KAZ"]
[WhiteClock "0:00:04"]
[BlackClock "0:00:04"]

1. e4 {[%clk 0:02:59]}  c5 {[%clk 0:02:58]} 2. Nf3 {[%clk 0:02:59]}  e6 {[%clk 0:02:57]} 3. d4 {[%clk 0:03:00]}  cxd4 {[%clk 0:02:57]} 4. Nxd4 {[%clk 0:03:00]}  Nf6 {[%clk 0:02:57]} 5. Nc3 {[%clk 0:03:01]}  d6 {[%clk 0:02:57]} 6. g4 {[%clk 0:03:00]}  e5 {[%clk 0:02:56]} 7. Bb5+ {[%clk 0:02:55]}  Bd7 {[%clk 0:02:56]} 8. Bxd7+ {[%clk 0:02:47]}  Qxd7 {[%clk 0:02:57]} 9. Nf5 {[%clk 0:02:48]}  h5 {[%clk 0:02:54]} 10. Bg5 {[%clk 0:02:23]}  Nh7 {[%clk 0:02:44]} 11. Be3 {[%clk 0:01:56]}  hxg4 {[%clk 0:02:19]} 12. Qxg4 {[%clk 0:01:53]}  g6 {[%clk 0:02:16]} 13. Nd5 {[%clk 0:01:28]}  gxf5 {[%clk 0:02:06]} 14. Qh4 {[%clk 0:01:15]}  Qd8 {[%clk 0:01:24]} 15. Qh3 {[%clk 0:00:57]}  f4 {[%clk 0:01:16]} 16. Bd2 {[%clk 0:00:53]}  Nd7 {[%clk 0:00:56]} 17. Rg1 {[%clk 0:00:30]}  Ndf6 {[%clk 0:00:54]} 18. Nc3 {[%clk 0:00:12]}  Qd7 {[%clk 0:00:52]} 19. Qd3 {[%clk 0:00:12]}  O-O-O {[%clk 0:00:48]} 20. O-O-O {[%clk 0:00:12]}  Kb8 {[%clk 0:00:37]} 21. f3 {[%clk 0:00:10]}  Rg8 {[%clk 0:00:31]} 22. Rxg8 {[%clk 0:00:08]}  Nxg8 {[%clk 0:00:32]} 23. Be1 {[%clk 0:00:08]}  Nhf6 {[%clk 0:00:15]} 24. Bf2 {[%clk 0:00:08]}  Qc6 {[%clk 0:00:12]} 25. a4 {[%clk 0:00:09]}  Nd7 {[%clk 0:00:12]} 26. Nb5 {[%clk 0:00:09]}  Nc5 {[%clk 0:00:11]} 27. Qc4 {[%clk 0:00:08]}  a6 {[%clk 0:00:11]} 28. Nc3 {[%clk 0:00:08]}  Ne6 {[%clk 0:00:08]} 29. Qb3 {[%clk 0:00:06]}  Nf6 {[%clk 0:00:07]} 30. a5 {[%clk 0:00:07]}  Be7 {[%clk 0:00:07]} 31. Bb6 {[%clk 0:00:07]}  Rc8 {[%clk 0:00:08]} 32. Nd5 {[%clk 0:00:07]}  Qd7 {[%clk 0:00:03]} 33. Kb1 {[%clk 0:00:04]}  Nc5 {[%clk 0:00:04]} 34. Bxc5 {[%clk 0:00:03]}  Rxc5 {[%clk 0:00:05]} 35. Nb6 {[%clk 0:00:04]}  Qe6 {[%clk 0:00:04]} 36. Qb4 {[%clk 0:00:03]}  Nd7 {[%clk 0:00:04]} 37. Nd5 {[%clk 0:00:02]}  Bd8 {[%clk 0:00:03]} 38. h4 {[%clk 0:00:03]}  Bxh4 {[%clk 0:00:02]} 39. Rh1 {[%clk 0:00:02]}  Bd8 {[%clk 0:00:02]} 40. Qb3 {[%clk 0:00:03]}  Rc8 {[%clk 0:00:02]} 41. Rh8 {[%clk 0:00:03]}  Nc5 {[%clk 0:00:03]} 42. Qc4 {[%clk 0:00:03]}  Bxa5 {[%clk 0:00:03]} 43. b4 {[%clk 0:00:03]}  Rxh8 {[%clk 0:00:02]} 44. bxa5 {[%clk 0:00:04]}  Rh1+ {[%clk 0:00:02]} 45. Kb2 {[%clk 0:00:04]}  Qd7 {[%clk 0:00:03]} 46. Qb4 {[%clk 0:00:05]}  Qb5 {[%clk 0:00:03]} 47. Qxb5 {[%clk 0:00:04]}  axb5 {[%clk 0:00:04]} 0-1

[Event "December 19 Late 2023"]
[Site "https://www.chess.com"]
[Date "2023.12.19"]
[Round "10"]
[White "Keleberda, Tymur"]
[Black "Sun, Rick"]
[Result "0-1"]
[Board "28"]
[TimeControl "180+1"]
[WhiteFideId "14174294"]
[BlackFideId "30909481"]
[WhiteElo "2198"]
[BlackElo "2169"]
[WhiteTeam "CAN"]
[BlackTeam "USA"]
[WhiteClock "0:00:03"]
[BlackClock "0:00:06"]

1. e4 {[%clk 0:03:00]}  d6 {[%clk 0:03:00]} 2. d4 {[%clk 0:03:01]}  Nf6 {[%clk 0:03:01]} 3. Nc3 {[%clk 0:03:01]}  Nbd7 {[%clk 0:03:02]} 4. Nf3 {[%clk 0:03:00]}  e5 {[%clk 0:03:03]} 5. Bc4 {[%clk 0:03:00]}  Be7 {[%clk 0:03:03]} 6. a4 {[%clk 0:02:59]}  O-O {[%clk 0:03:03]} 7. O-O {[%clk 0:02:58]}  c6 {[%clk 0:03:04]} 8. h3 {[%clk 0:02:59]}  Qc7 {[%clk 0:03:04]} 9. Ba2 {[%clk 0:02:58]}  h6 {[%clk 0:03:03]} 10. Be3 {[%clk 0:02:53]}  Re8 {[%clk 0:03:03]} 11. Nh4 {[%clk 0:02:53]}  Nf8 {[%clk 0:03:02]} 12. Nf5 {[%clk 0:02:50]}  Bxf5 {[%clk 0:02:54]} 13. exf5 {[%clk 0:02:50]}  exd4 {[%clk 0:02:53]} 14. Bxd4 {[%clk 0:02:45]}  d5 {[%clk 0:02:54]} 15. Qf3 {[%clk 0:02:32]}  N8d7 {[%clk 0:02:49]} 16. g3 {[%clk 0:01:52]}  Bc5 {[%clk 0:02:46]} 17. Bxc5 {[%clk 0:01:48]}  Nxc5 {[%clk 0:02:47]} 18. Rad1 {[%clk 0:01:47]}  Qb6 {[%clk 0:02:27]} 19. Rb1 {[%clk 0:01:21]}  Re7 {[%clk 0:02:18]} 20. b4 {[%clk 0:01:19]}  Nce4 {[%clk 0:02:17]} 21. Nxe4 {[%clk 0:00:56]}  Nxe4 {[%clk 0:02:12]} 22. Qf4 {[%clk 0:00:56]}  Nc3 {[%clk 0:02:04]} 23. Rbe1 {[%clk 0:00:54]}  Rxe1 {[%clk 0:01:47]} 24. Rxe1 {[%clk 0:00:55]}  Nxa2 {[%clk 0:01:46]} 25. b5 {[%clk 0:00:41]}  cxb5 {[%clk 0:01:24]} 26. axb5 {[%clk 0:00:40]}  Nc3 {[%clk 0:01:17]} 27. Re7 {[%clk 0:00:39]}  Qf6 {[%clk 0:01:10]} 28. Qc7 {[%clk 0:00:26]}  Nxb5 {[%clk 0:00:42]} 29. Qxb7 {[%clk 0:00:26]}  Rf8 {[%clk 0:00:42]} 30. g4 {[%clk 0:00:24]}  Nd4 {[%clk 0:00:36]} 31. Rd7 {[%clk 0:00:16]}  Ne2+ {[%clk 0:00:31]} 32. Kg2 {[%clk 0:00:13]}  Nf4+ {[%clk 0:00:30]} 33. Kg3 {[%clk 0:00:13]}  Qe5 {[%clk 0:00:26]} 34. Re7 {[%clk 0:00:14]}  Ne6+ {[%clk 0:00:20]} 35. Kg2 {[%clk 0:00:10]}  Qe4+ {[%clk 0:00:20]} 36. Kh2 {[%clk 0:00:10]}  Qf4+ {[%clk 0:00:19]} 37. Kg2 {[%clk 0:00:10]}  Qe4+ {[%clk 0:00:13]} 38. Kg3 {[%clk 0:00:07]}  Nc5 {[%clk 0:00:11]} 39. Qc7 {[%clk 0:00:04]}  Qxc2 {[%clk 0:00:09]} 40. Qe5 {[%clk 0:00:02]}  Ne4+ {[%clk 0:00:06]} 41. Kh4 {[%clk 0:00:01]}  Qxf2+ {[%clk 0:00:06]} 42. Kh5 {[%clk 0:00:02]}  Nf6+ {[%clk 0:00:06]} 43. Qxf6 {[%clk 0:00:02]}  gxf6 {[%clk 0:00:06]} 44. h4 {[%clk 0:00:02]}  Qf4 {[%clk 0:00:06]} 45. Rd7 {[%clk 0:00:02]}  Kg7 {[%clk 0:00:06]} 46. Rxa7 {[%clk 0:00:02]}  d4 {[%clk 0:00:06]} 47. Rd7 {[%clk 0:00:02]}  Qe4 {[%clk 0:00:06]} 48. Rd6 {[%clk 0:00:02]}  d3 {[%clk 0:00:06]} 49. g5 {[%clk 0:00:03]}  Qf3# {[%clk 0:00:06]} 0-1

[Event "December 19 Late 2023"]
[Site "https://www.chess.com"]
[Date "2023.12.19"]
[Round "10"]
[White "Goltsev, Dmitry"]
[Black "Gallegos Diaz, Carlos Alberto"]
[Result "1-0"]
[Board "30"]
[TimeControl "180+1"]
[WhiteFideId "24176710"]
[BlackFideId "3900886"]
[WhiteElo "2370"]
[BlackElo "2362"]
[WhiteTeam "RUS"]
[BlackTeam "VEN"]
[WhiteClock "0:00:35"]
[BlackClock "0:00:00"]

1. e4 {[%clk 0:03:00]}  d6 {[%clk 0:02:59]} 2. d4 {[%clk 0:02:59]}  Nf6 {[%clk 0:02:59]} 3. Nc3 {[%clk 0:02:59]}  c6 {[%clk 0:02:59]} 4. a4 {[%clk 0:02:59]}  Qa5 {[%clk 0:02:59]} 5. Bd3 {[%clk 0:02:58]}  e5 {[%clk 0:02:58]} 6. dxe5 {[%clk 0:02:57]}  dxe5 {[%clk 0:02:57]} 7. Nf3 {[%clk 0:02:56]}  Be7 {[%clk 0:02:56]} 8. Bd2 {[%clk 0:02:47]}  Qc7 {[%clk 0:02:55]} 9. h3 {[%clk 0:02:46]}  O-O {[%clk 0:02:55]} 10. O-O {[%clk 0:02:45]}  Nbd7 {[%clk 0:02:55]} 11. Qe2 {[%clk 0:02:44]}  Nc5 {[%clk 0:02:53]} 12. Bc4 {[%clk 0:02:44]}  h6 {[%clk 0:02:47]} 13. Nh4 {[%clk 0:02:42]}  Re8 {[%clk 0:02:45]} 14. Qf3 {[%clk 0:02:37]}  Be6 {[%clk 0:02:40]} 15. Be2 {[%clk 0:02:30]}  Rad8 {[%clk 0:02:31]} 16. Be3 {[%clk 0:02:27]}  a5 {[%clk 0:02:04]} 17. Nf5 {[%clk 0:02:25]}  Bxf5 {[%clk 0:02:04]} 18. Qxf5 {[%clk 0:02:23]}  Ne6 {[%clk 0:02:00]} 19. Bc4 {[%clk 0:02:17]}  Nf4 {[%clk 0:01:41]} 20. Bxf4 {[%clk 0:02:15]}  exf4 {[%clk 0:01:41]} 21. e5 {[%clk 0:02:16]}  Nd5 {[%clk 0:01:36]} 22. e6 {[%clk 0:01:59]}  fxe6 {[%clk 0:01:06]} 23. Qxe6+ {[%clk 0:01:58]}  Kh8 {[%clk 0:01:06]} 24. Bxd5 {[%clk 0:01:54]}  Bf6 {[%clk 0:00:56]} 25. Qf5 {[%clk 0:01:49]}  Re5 {[%clk 0:00:42]} 26. Qxf4 {[%clk 0:01:48]}  cxd5 {[%clk 0:00:41]} 27. Rae1 {[%clk 0:01:36]}  d4 {[%clk 0:00:39]} 28. Nb5 {[%clk 0:01:36]}  Qc5 {[%clk 0:00:33]} 29. Rxe5 {[%clk 0:01:33]}  Bxe5 {[%clk 0:00:33]} 30. Qe4 {[%clk 0:01:31]}  Bf6 {[%clk 0:00:33]} 31. Rd1 {[%clk 0:01:28]}  b6 {[%clk 0:00:29]} 32. b3 {[%clk 0:01:18]}  Rc8 {[%clk 0:00:21]} 33. Rd2 {[%clk 0:01:03]}  Qb4 {[%clk 0:00:20]} 34. Re2 {[%clk 0:01:02]}  d3 {[%clk 0:00:17]} 35. Qxd3 {[%clk 0:00:59]}  Rd8 {[%clk 0:00:17]} 36. Qf3 {[%clk 0:00:57]}  Qc5 {[%clk 0:00:12]} 37. g3 {[%clk 0:00:54]}  h5 {[%clk 0:00:08]} 38. Kg2 {[%clk 0:00:52]}  h4 {[%clk 0:00:08]} 39. g4 {[%clk 0:00:47]}  Qg5 {[%clk 0:00:06]} 40. Qf5 {[%clk 0:00:46]}  Qxf5 {[%clk 0:00:06]} 41. gxf5 {[%clk 0:00:47]}  Rd5 {[%clk 0:00:06]} 42. Re6 {[%clk 0:00:46]}  Rd2 {[%clk 0:00:04]} 43. Rc6 {[%clk 0:00:44]}  Be5 {[%clk 0:00:02]} 44. Kf3 {[%clk 0:00:43]}  Bh2 {[%clk 0:00:02]} 45. Ke3 {[%clk 0:00:35]}  Bg1 {[%clk 0:00:00]} 46. Kxd2 {[%clk 0:00:35]} 1-0

[Event "December 19 Late 2023"]
[Site "https://www.chess.com"]
[Date "2023.12.19"]
[Round "10"]
[White "Paragua, Megan Althea"]
[Black "Solon, Nathan"]
[Result "0-1"]
[Board "31"]
[TimeControl "180+1"]
[WhiteFideId "30973007"]
[BlackFideId "2017229"]
[WhiteElo "1961"]
[BlackElo "2681"]
[WhiteTeam "USA"]
[BlackTeam "USA"]
[WhiteClock "0:00:42"]
[BlackClock "0:01:03"]

1. d4 {[%clk 0:02:58]}  d5 {[%clk 0:02:59]} 2. Nf3 {[%clk 0:02:56]}  Nf6 {[%clk 0:02:59]} 3. g3 {[%clk 0:02:57]}  c6 {[%clk 0:02:57]} 4. Bg2 {[%clk 0:02:57]}  Bf5 {[%clk 0:02:57]} 5. O-O {[%clk 0:02:56]}  h6 {[%clk 0:02:57]} 6. b3 {[%clk 0:02:54]}  e6 {[%clk 0:02:57]} 7. Bb2 {[%clk 0:02:53]}  Be7 {[%clk 0:02:57]} 8. Nbd2 {[%clk 0:02:52]}  O-O {[%clk 0:02:57]} 9. Ne5 {[%clk 0:02:51]}  Nbd7 {[%clk 0:02:56]} 10. f3 {[%clk 0:02:48]}  Bh7 {[%clk 0:02:55]} 11. e3 {[%clk 0:02:43]}  c5 {[%clk 0:02:51]} 12. Nxd7 {[%clk 0:02:42]}  Qxd7 {[%clk 0:02:48]} 13. c3 {[%clk 0:02:39]}  Rac8 {[%clk 0:02:46]} 14. Re1 {[%clk 0:02:37]}  Rfd8 {[%clk 0:02:44]} 15. Qe2 {[%clk 0:02:36]}  b5 {[%clk 0:02:41]} 16. Rac1 {[%clk 0:02:22]}  a5 {[%clk 0:02:32]} 17. a3 {[%clk 0:02:18]}  c4 {[%clk 0:02:17]} 18. b4 {[%clk 0:02:16]}  Ra8 {[%clk 0:02:15]} 19. Ra1 {[%clk 0:02:14]}  Ra6 {[%clk 0:02:12]} 20. e4 {[%clk 0:02:10]}  dxe4 {[%clk 0:02:04]} 21. fxe4 {[%clk 0:02:09]}  e5 {[%clk 0:02:04]} 22. d5 {[%clk 0:02:06]}  Ng4 {[%clk 0:01:58]} 23. Bh3 {[%clk 0:01:47]}  h5 {[%clk 0:01:53]} 24. Nf3 {[%clk 0:01:46]}  Qa7+ {[%clk 0:01:31]} 25. Kg2 {[%clk 0:01:42]}  Bxe4 {[%clk 0:01:23]} 26. Bxg4 {[%clk 0:01:37]}  hxg4 {[%clk 0:01:22]} 27. Qxe4 {[%clk 0:01:37]}  gxf3+ {[%clk 0:01:22]} 28. Qxf3 {[%clk 0:01:36]}  Rf6 {[%clk 0:01:20]} 29. Qe3 {[%clk 0:01:35]}  Qxe3 {[%clk 0:01:19]} 30. Rxe3 {[%clk 0:01:35]}  Rxd5 {[%clk 0:01:19]} 31. Re2 {[%clk 0:01:25]}  a4 {[%clk 0:01:18]} 32. Rae1 {[%clk 0:01:24]}  Re6 {[%clk 0:01:10]} 33. g4 {[%clk 0:01:20]}  f6 {[%clk 0:01:10]} 34. h3 {[%clk 0:01:13]}  Kf7 {[%clk 0:01:10]} 35. Rf2 {[%clk 0:01:10]}  Bd8 {[%clk 0:01:07]} 36. Rfe2 {[%clk 0:01:08]}  Bb6 {[%clk 0:01:06]} 37. h4 {[%clk 0:01:04]}  Rd3 {[%clk 0:01:06]} 38. Kh2 {[%clk 0:00:59]}  Red6 {[%clk 0:01:06]} 39. Kg2 {[%clk 0:00:58]}  Ke6 {[%clk 0:01:05]} 40. Kh2 {[%clk 0:00:55]}  Rf3 {[%clk 0:01:05]} 41. Kg2 {[%clk 0:00:55]}  Rdd3 {[%clk 0:01:05]} 42. Re4 {[%clk 0:00:42]}  Rf2+ {[%clk 0:01:03]} 0-1

[Event "December 19 Late 2023"]
[Site "https://www.chess.com"]
[Date "2023.12.19"]
[Round "10"]
[White "Ghasi, Ameet K"]
[Black "Chylewski, Patryk"]
[Result "1-0"]
[Board "35"]
[TimeControl "180+1"]
[WhiteFideId "409200"]
[BlackFideId "1186191"]
[WhiteElo "2558"]
[BlackElo "2176"]
[WhiteTeam "ENG"]
[BlackTeam "POL"]
[WhiteClock "0:00:40"]
[BlackClock "0:00:00"]

1. d4 {[%clk 0:03:00]}  Nf6 {[%clk 0:02:55]} 2. Nf3 {[%clk 0:03:01]}  d5 {[%clk 0:02:54]} 3. Bf4 {[%clk 0:02:59]}  c5 {[%clk 0:02:52]} 4. e3 {[%clk 0:03:00]}  Nc6 {[%clk 0:02:52]} 5. c3 {[%clk 0:03:00]}  e6 {[%clk 0:02:42]} 6. Nbd2 {[%clk 0:02:59]}  cxd4 {[%clk 0:02:37]} 7. exd4 {[%clk 0:03:00]}  Nh5 {[%clk 0:02:38]} 8. Be3 {[%clk 0:02:59]}  Bd6 {[%clk 0:02:38]} 9. g3 {[%clk 0:02:57]}  O-O {[%clk 0:02:07]} 10. Bd3 {[%clk 0:02:55]}  f5 {[%clk 0:02:05]} 11. Ne5 {[%clk 0:02:41]}  Bxe5 {[%clk 0:01:32]} 12. Qxh5 {[%clk 0:02:38]}  g6 {[%clk 0:01:30]} 13. Qe2 {[%clk 0:02:36]}  Bg7 {[%clk 0:01:14]} 14. h4 {[%clk 0:02:36]}  e5 {[%clk 0:01:12]} 15. dxe5 {[%clk 0:02:33]}  Nxe5 {[%clk 0:01:12]} 16. h5 {[%clk 0:02:34]}  b6 {[%clk 0:00:59]} 17. hxg6 {[%clk 0:02:30]}  hxg6 {[%clk 0:01:00]} 18. Nf3 {[%clk 0:02:20]}  Ng4 {[%clk 0:00:17]} 19. O-O-O {[%clk 0:02:15]}  Re8 {[%clk 0:00:17]} 20. Bc4 {[%clk 0:02:01]}  Bb7 {[%clk 0:00:17]} 21. Bb3 {[%clk 0:01:57]}  Qd7 {[%clk 0:00:15]} 22. Qd2 {[%clk 0:01:55]}  Nxe3 {[%clk 0:00:14]} 23. fxe3 {[%clk 0:01:56]}  Rad8 {[%clk 0:00:15]} 24. Qh2 {[%clk 0:01:15]}  Qe7 {[%clk 0:00:09]} 25. Rde1 {[%clk 0:01:05]}  a5 {[%clk 0:00:07]} 26. g4 {[%clk 0:00:58]}  fxg4 {[%clk 0:00:06]} 27. Qh7+ {[%clk 0:00:41]}  Kf8 {[%clk 0:00:02]} 28. Nh4 {[%clk 0:00:40]}  Qf7 {[%clk 0:00:00]} 29. Nxg6+ {[%clk 0:00:40]} 1-0